bitfinex/quotes_ETHUSD_20260310
["timestamp","ask_amount","ask_price","bid_price","bid_amount"]
[1773132227113,2.92551616,2069.4,2068.3,1.20872213]
[1773132227329,0.59304128,2069.3,2068.3,1.20872213]
[1773132229142,3.04323768,2069.2,2068.2,5.4849139]
[1773132229641,0.59304128,2069.1,2068.2,5.4849139]
[1773132231797,1.20831319,2069.0,2068.2,5.4849139]
[1773132231939,1.82226207,2069.0,2068.2,1.85979327]
[1773132232130,0.61394888,2068.9,2068.2,1.85979327]
[1773132232935,0.61394888,2068.9,2068.2,1.20978058]
[1773132233729,1.82236721,2068.9,2068.2,1.20978058]
[1773132236468,1.82236721,2068.9,2068.2,0.001]
[1773132237339,0.61394888,2068.8,2068.2,0.001]
[1773132238168,0.61394888,2068.8,2068.2,0.63418967]
[1773132239167,1.20848842,2068.7,2068.2,0.63418967]
[1773132239343,1.8224076,2068.8,2068.2,1.84296766]
[1773132240553,0.61394888,2068.8,2068.2,1.84296766]
[1773132240759,1.24,2068.8,2068.3,0.63318967]
[1773132240959,0.002,2069.1,2068.3,0.63318967]
[1773132241175,0.002,2069.3,2068.6,0.63318967]
[1773132241376,0.002,2069.3,2068.9,0.63318967]
[1773132243340,0.002,2069.3,2069.0,1.84150286]
[1773132243742,0.002,2069.3,2069.1,0.62466448]
[1773132244775,0.002,2069.6,2069.2,0.62466448]
[1773132245146,0.61744918,2069.5,2068.7,0.62466448]
[1773132245351,0.61744918,2069.5,2068.8,1.83309448]
[1773132245554,0.002,2069.6,2068.9,0.62466448]
[1773132245768,1.20998525,2069.6,2068.9,0.62466448]
[1773132245968,1.20998525,2069.6,2068.8,1.20843]
[1773132245969,0.61744918,2069.5,2068.8,1.20843]
[1773132246368,0.61744918,2069.5,2068.7,0.62466448]
[1773132246568,0.61744918,2069.5,2068.5,1.83422474]
[1773132247352,1.20807963,2069.4,2068.6,0.62466448]
[1773132248086,1.82552881,2069.4,2068.6,0.62466448]
[1773132250182,1.82552881,2069.4,2068.7,1.20848842]
[1773132250770,0.61744918,2069.3,2068.7,1.20848842]
[1773132252584,1.82560822,2069.3,2068.7,0.62466448]
[1773132253088,0.61744918,2069.2,2068.5,0.001]
[1773132253266,0.61744918,2069.2,2068.5,0.62566448]
[1773132253795,1.20815904,2069.3,2068.5,0.62566448]
[1773132254311,1.82560822,2069.3,2068.5,0.62566448]
[1773132254514,3.06050135,2069.5,2068.5,0.62566448]
[1773132254662,0.002,2069.6,2068.8,0.62466448]
[1773132254862,1.20997441,2069.6,2068.8,0.62466448]
[1773132255161,1.82742359,2069.6,2068.8,0.62466448]
[1773132255475,0.61744918,2069.5,2068.6,1.83321132]
[1773132255681,0.61744918,2069.5,2068.7,0.62466448]
[1773132257105,1.8255159,2069.5,2068.8,1.83309448]
[1773132257391,0.002,2069.1,2068.8,1.83309448]
[1773132257959,0.002,2069.1,2068.7,1.20944554]
[1773132258371,0.002,2069.1,2068.7,1.83411002]
[1773132258608,0.002,2069.3,2068.9,0.62466448]
[1773132258811,0.61944918,2069.3,2068.7,0.001]
[1773132258972,0.002,2069.3,2068.8,0.62466448]
[1773132259176,0.002,2069.3,2068.9,0.62466448]
[1773132261108,0.002,2069.3,2069.0,1.20831319]
[1773132262702,0.002,2069.3,2068.9,1.83299298]
[1773132269613,0.002,2069.3,2069.0,0.62466448]
[1773132270117,0.002,2069.1,2069.0,0.62466448]
[1773132270316,0.002,2069.3,2069.0,0.62466448]
[1773132271817,0.002,2069.3,2069.1,1.20825479]
[1773132273023,0.002,2069.3,2069.1,1.83291927]
[1773132273622,0.002,2069.6,2069.2,0.59466905]
[1773132274197,0.002,2069.6,2069.3,1.20813801]
[1773132276209,0.002,2069.6,2069.2,1.80282554]
[1773132277031,0.58003987,2069.6,2069.2,1.80282554]
[1773132277203,0.58003987,2069.6,2069.2,1.20815649]
[1773132278641,0.58003987,2069.6,2069.0,1.80295538]
[1773132278642,0.57803987,2069.5,2069.0,1.80295538]
[1773132278828,0.57803987,2069.5,2069.0,1.20828633]
[1773132279027,0.57803987,2069.5,2068.9,0.001]
[1773132280926,0.57803987,2069.3,2068.9,0.001]
[1773132282430,0.57803987,2069.3,2069.1,0.001]
[1773132282927,0.58003987,2069.3,2069.1,0.001]
[1773132283129,1.78821509,2069.3,2069.1,0.001]
[1773132283733,0.58003987,2069.3,2069.1,0.001]
[1773132284236,0.002,2069.3,2069.1,0.001]
[1773132285043,0.58003987,2069.3,2069.1,0.001]
[1773132286533,0.58003987,2069.3,2068.9,0.001]
[1773132287217,1.78623627,2069.2,2068.9,0.001]
[1773132287533,0.57803987,2069.1,2068.7,0.001]
[1773132288229,1.80703987,2069.0,2068.7,0.001]
[1773132288527,1.229,2069.0,2068.5,0.001]
[1773132288835,0.57803987,2068.9,2068.2,0.59466905]
[1773132289234,0.57803987,2068.7,2068.2,1.20876972]
[1773132289612,0.57803987,2068.7,2068.0,0.001]
[1773132289804,0.56554375,2068.6,2068.0,1.20989522]
[1773132290004,0.56554375,2068.6,2068.0,0.001]
[1773132291011,0.56554375,2068.5,2068.0,0.001]
[1773132291211,1.229,2068.6,2068.0,0.001]
[1773132291212,1.77420745,2068.4,2068.0,0.001]
[1773132291415,1.79554375,2068.7,2068.0,0.59952824]
[1773132292212,0.56554375,2068.7,2068.0,0.001]
[1773132292439,0.56554375,2068.7,2068.0,0.59952824]
[1773132293540,0.56554375,2068.6,2068.1,1.20883903]
[1773132293916,0.56554375,2068.6,2067.8,4.83696128]
[1773132293917,0.56554375,2068.6,2067.8,0.001]
[1773132294142,0.56554375,2068.6,2067.8,1.21000359]
[1773132294319,1.79554375,2068.6,2067.9,0.0106529]
[1773132294644,0.56554375,2068.5,2067.9,0.04835823]
[1773132294845,0.56554375,2068.5,2067.8,1.25836624]
[1773132295416,0.56554375,2068.5,2067.8,0.04936057]
[1773132295616,0.56554375,2068.3,2067.8,0.001]
[1773132296519,0.56554375,2068.3,2068.0,0.001]
[1773132297447,0.56554375,2068.3,2067.8,0.001]
[1773132297651,0.56554375,2068.1,2067.8,0.002]
[1773132299820,0.56554375,2067.9,2067.8,0.002]
[1773132301021,0.56554375,2067.9,2067.7,0.001]
[1773132301230,0.56554375,2067.8,2067.2,0.001]
[1773132301452,0.56554375,2067.8,2067.2,1.21036237]
[1773132301626,0.56554375,2067.8,2067.2,1.80889061]
[1773132301827,1.20907288,2067.7,2067.2,0.59952824]
[1773132302162,1.7746014,2067.8,2067.2,1.80889287]
[1773132302366,0.56554375,2068.6,2067.3,0.59852824]
[1773132302549,0.56554375,2068.2,2067.2,1.21036463]
[1773132302855,0.56554375,2068.2,2067.2,1.80888556]
[1773132303162,0.56554375,2068.2,2066.5,6.33799571]
[1773132303163,0.56554375,2067.2,2066.5,0.59852824]
[1773132303461,0.56554375,2067.2,2065.5,1.45239474]
[1773132303462,0.62401236,2066.6,2065.5,0.66069431]
[1773132303877,1.84601236,2067.1,2065.8,0.66069431]
[1773132304159,0.62401236,2066.8,2065.8,0.66069431]
[1773132305153,0.62401236,2067.2,2065.8,0.66069431]
[1773132305349,0.62401236,2067.2,2065.9,0.66069431]
[1773132305730,0.62401236,2067.1,2065.9,0.66069431]
[1773132306135,1.8334947,2067.0,2066.1,0.66069431]
[1773132306343,1.8334947,2067.0,2066.2,0.66069431]
[1773132307659,0.62401236,2066.9,2066.2,0.66069431]
[1773132307861,0.62401236,2066.9,2066.0,1.87076207]
[1773132308254,0.62401236,2066.9,2066.4,0.001]
[1773132308255,1.83361174,2066.8,2066.4,0.001]
[1773132310472,0.62601236,2067.0,2066.4,0.001]
[1773132310676,1.21151157,2067.0,2066.4,0.65790695]
[1773132312050,1.83549498,2067.0,2066.4,0.65620817]
[1773132312248,1.83549663,2067.0,2066.4,0.65620817]
[1773132312759,1.83549663,2067.0,2066.4,1.86603917]
[1773132312975,1.83549663,2067.0,2066.4,0.65620817]
[1773132313185,1.83549663,2067.0,2066.4,1.86603776]
[1773132313392,0.62601236,2067.2,2066.5,0.651806]
[1773132313841,0.62601236,2067.2,2066.4,3.54954549]
[1773132313842,0.62401236,2067.1,2066.4,1.21082959]
[1773132314042,0.62401236,2067.1,2066.4,1.21080134]
[1773132314890,0.62401236,2067.1,2066.4,0.001]
[1773132315581,1.20948234,2067.0,2066.4,1.21083318]
[1773132315765,1.8334947,2067.0,2066.4,1.21083318]
[1773132315972,0.62601236,2067.2,2066.5,0.64846647]
[1773132316490,1.83538317,2067.2,2066.5,0.64846647]
[1773132316648,0.62601236,2067.2,2066.5,0.64846647]
[1773132317587,0.002,2067.2,2066.7,0.64508057]
[1773132318101,0.002,2067.5,2066.7,0.69346688]
[1773132318264,0.002,2067.5,2066.7,0.64508057]
[1773132318452,1.21119053,2067.5,2066.7,0.64508057]
[1773132318799,0.62401236,2067.4,2066.4,0.001]
[1773132318949,1.21119053,2067.5,2066.4,0.001]
[1773132318950,0.62401236,2067.0,2066.4,0.001]
[1773132319754,0.62401236,2066.8,2066.4,0.001]
[1773132320592,1.20954085,2066.9,2066.4,0.001]
[1773132322394,0.62401236,2066.9,2066.6,0.001]
[1773132323157,0.61030909,2066.9,2066.6,0.001]
[1773132323592,0.61030909,2066.9,2066.1,0.001]
[1773132324183,0.62401236,2066.7,2066.1,0.001]
[1773132324390,1.232,2066.6,2066.1,0.001]
[1773132324576,0.62401236,2066.5,2066.1,0.001]
[1773132325281,0.62401236,2066.5,2065.9,0.001]
[1773132325282,0.62401236,2066.4,2065.4,1.21037765]
[1773132326086,1.20987048,2066.4,2065.5,0.64689466]
[1773132326289,5.46324235,2066.5,2065.2,0.64529472]
[1773132326290,0.62401236,2066.2,2065.2,0.64529472]
[1773132328196,0.62401236,2066.0,2065.2,1.85580448]
[1773132329163,0.62401236,2066.0,2065.2,1.21050976]
[1773132329667,0.62401236,2066.0,2065.1,1.85088245]
[1773132330064,0.62401236,2066.0,2065.1,0.64032698]
[1773132330263,1.83413869,2065.9,2065.2,1.2105365]
[1773132331762,0.62401236,2065.8,2065.1,1.21058306]
[1773132332393,1.2102435,2065.7,2065.0,0.6353843]
[1773132332573,1.83424213,2065.8,2065.0,0.6353843]
[1773132333785,0.62214871,2065.7,2065.0,0.6353843]
[1773132334817,1.21030209,2065.6,2065.2,0.001]
[1773132335119,0.62214871,2065.9,2065.2,0.62234283]
[1773132335335,0.62214871,2065.9,2065.3,0.62134283]
[1773132336482,0.62214871,2066.1,2065.3,0.62134283]
[1773132337627,0.62214871,2066.1,2065.2,1.21152925]
[1773132337628,0.62214871,2066.0,2065.2,1.21152925]
[1773132337989,0.62214871,2066.0,2065.3,0.62134283]
[1773132339286,0.62214871,2066.0,2065.2,1.21152925]
[1773132339617,0.62214871,2065.8,2065.2,1.21152925]
[1773132342307,1.2102435,2065.7,2065.2,1.21152925]
[1773132342507,1.83239221,2065.7,2065.2,0.001]
[1773132342819,0.62214871,2065.7,2065.2,0.001]
[1773132343812,0.62214871,2065.9,2065.2,0.61858237]
[1773132344471,0.62214871,2065.8,2065.2,1.82907502]
[1773132344934,0.62214871,2065.8,2065.2,0.001]
[1773132346417,0.62214871,2065.6,2065.2,0.001]
[1773132347527,1.2122435,2065.7,2064.7,1.21182829]
[1773132347708,0.62214871,2065.6,2064.8,0.61212932]
[1773132348435,1.83250939,2065.5,2064.8,1.82285807]
[1773132349010,0.62214871,2065.5,2064.9,0.61058573]
[1773132349252,0.62214871,2065.5,2064.4,0.60898334]
[1773132349458,1.21034039,2065.6,2064.5,0.02800216]
[1773132349459,0.62214871,2065.2,2064.5,0.02800216]
[1773132349643,1.85814871,2065.4,2064.5,0.6369855]
[1773132349941,0.62214871,2065.3,2064.5,0.60898334]
[1773132350538,0.62214871,2065.1,2064.2,1.81851244]
[1773132350918,0.62214871,2065.1,2064.3,0.60741177]
[1773132352731,1.83280246,2065.0,2064.3,0.60741177]
[1773132353354,1.83280246,2065.0,2064.3,1.8184412]
[1773132353923,1.83280246,2065.0,2064.4,0.04844022]
[1773132354252,1.83280246,2065.0,2064.4,0.64254997]
[1773132354622,1.21077101,2064.8,2064.4,0.04844022]
[1773132354822,1.21077101,2064.8,2064.3,0.64254997]
[1773132355052,1.21077101,2064.8,2064.4,0.04843786]
[1773132355423,1.21077101,2064.8,2064.3,0.04843786]
[1773132355845,1.84001498,2064.9,2064.3,0.64254761]
[1773132356040,1.21066534,2065.0,2064.4,0.59410975]
[1773132356222,0.62928765,2065.1,2064.5,0.64254291]
[1773132356435,0.62928765,2065.3,2064.7,0.59410975]
[1773132356634,1.21046346,2065.4,2064.8,1.85326011]
[1773132356834,1.21046346,2065.4,2064.8,1.80483399]
[1773132357354,1.83967318,2065.5,2064.9,2.94133351]
[1773132357555,1.83967318,2065.5,2064.9,0.59410975]
[1773132358052,1.83966081,2065.5,2064.9,0.59410975]
[1773132358954,1.83966081,2065.5,2064.9,1.80476955]
[1773132359957,0.63128765,2065.4,2064.9,0.59410975]
[1773132360162,0.63128765,2065.4,2064.7,0.59327402]
[1773132360363,0.63128765,2065.4,2064.6,3.55806876]
[1773132360866,0.63128765,2065.4,2064.7,0.59171156]
[1773132361074,1.84175982,2065.4,2064.8,1.80248257]
[1773132361292,1.84175982,2065.4,2064.8,0.59171156]
[1773132361756,0.62928765,2065.3,2064.8,0.59171156]
[1773132362298,0.62928765,2065.3,2064.4,1.493]
[1773132362299,2.34722376,2065.1,2063.9,1.40470405]
[1773132362502,2.34722376,2065.1,2063.9,2.02736298]
[1773132362503,0.62928765,2064.9,2063.9,2.02736298]
[1773132362701,0.62928765,2064.9,2064.3,0.588586]
[1773132362995,1.83992524,2065.1,2064.4,1.79959161]
[1773132363154,1.83992524,2065.1,2064.5,0.588586]
[1773132363652,0.62481744,2065.3,2064.6,0.63059701]
[1773132363990,0.62481744,2065.3,2064.8,2.34722376]
[1773132364153,0.62481744,2065.3,2064.6,0.63059701]
[1773132365055,0.002,2065.4,2064.8,2.97615475]
[1773132365378,0.002,2065.4,2064.8,2.34722376]
[1773132365581,0.002,2065.4,2064.9,0.62726002]
[1773132365788,0.002,2065.6,2065.1,2.97448378]
[1773132366157,0.002,2065.6,2065.2,0.62726002]
[1773132366556,0.62481744,2065.5,2064.7,1.83647931]
[1773132366755,0.62481744,2065.5,2064.8,0.62564965]
[1773132366975,0.002,2065.6,2064.7,1.21082966]
[1773132366976,0.002,2065.6,2065.0,0.62564965]
[1773132367212,0.002,2065.6,2065.0,1.83626378]
[1773132369918,0.62681744,2065.6,2065.0,1.83626378]
[1773132370114,0.62681744,2065.6,2065.0,1.21061413]
[1773132370587,0.62681744,2065.6,2064.9,1.82973892]
[1773132370817,0.62681744,2065.6,2064.9,4.17696268]
[1773132371515,0.62681744,2065.6,2064.9,1.82973892]
[1773132371725,0.62681744,2065.6,2064.9,1.21070776]
[1773132372724,0.62481744,2065.4,2064.8,1.21077101]
[1773132373022,0.62481744,2065.4,2064.6,1.21086837]
[1773132373321,0.62481744,2065.4,2064.6,1.82474371]
[1773132373481,0.62481744,2065.4,2064.6,1.21086837]
[1773132373686,0.62681744,2065.4,2064.6,1.21086837]
[1773132374186,0.62681744,2065.4,2064.5,3.55912928]
[1773132374387,0.62681744,2065.4,2064.5,1.2119438]
[1773132374800,0.62481744,2065.2,2064.3,0.001]
[1773132375007,0.62481744,2065.2,2064.3,1.21206185]
[1773132375213,0.62481744,2065.1,2064.3,1.21206185]
[1773132375626,0.62481744,2065.1,2064.3,0.001]
[1773132375808,0.62481744,2065.1,2064.3,1.21205537]
[1773132376234,0.62481744,2065.1,2064.3,0.001]
[1773132376807,0.62481744,2064.9,2064.3,0.001]
[1773132377004,0.62481744,2064.9,2063.5,0.60969689]
[1773132377005,0.62481744,2064.8,2063.5,0.60969689]
[1773132377338,0.62481744,2064.5,2063.5,1.21151633]
[1773132377514,0.62481744,2064.4,2063.5,1.21151633]
[1773132378031,0.62481744,2064.4,2063.3,1.81957298]
[1773132378445,0.62481744,2064.4,2063.3,1.81961075]
[1773132378612,0.62481744,2064.4,2063.8,2.97727038]
[1773132378817,1.239,2064.9,2063.8,1.84136783]
[1773132378818,0.62481744,2064.6,2063.8,1.84136783]
[1773132379018,0.62481744,2064.6,2063.5,1.84158042]
[1773132379613,0.62481744,2064.6,2063.6,0.62826654]
[1773132380702,0.62481744,2064.4,2063.7,1.21141638]
[1773132381534,0.62481744,2064.4,2063.3,0.62471857]
[1773132381855,0.62481744,2064.4,2063.3,1.8363698]
[1773132382060,0.62481744,2064.4,2063.3,1.21165123]
[1773132382570,0.62481744,2064.4,2063.0,4.18200576]
[1773132382758,0.62481744,2064.2,2063.0,4.18200576]
[1773132383364,0.62481744,2064.0,2062.7,1.8331976]
[1773132383578,0.62481744,2064.0,2062.8,0.62119392]
[1773132383873,0.62481744,2063.9,2062.8,0.62119392]
[1773132384280,0.62481744,2063.9,2062.7,3.55922744]
[1773132384585,0.62481744,2063.9,2062.6,1.21201844]
[1773132384988,0.62481744,2063.7,2062.9,2.34722376]
[1773132385285,0.62481744,2063.6,2062.6,0.61769654]
[1773132385495,0.62481744,2063.6,2062.8,2.9649203]
[1773132386175,0.62481744,2063.6,2063.3,0.001]
[1773132387266,0.62481744,2063.4,2063.0,0.001]
[1773132387503,0.62481744,2063.4,2062.6,1.82730613]
[1773132388892,0.62481744,2063.4,2062.7,0.6135351]
[1773132389194,1.8364121,2063.4,2062.8,1.21194492]
[1773132389512,1.83623382,2063.7,2063.0,2.34722376]
[1773132389709,0.62481744,2063.7,2063.0,2.34722376]
[1773132389913,0.62481744,2063.7,2063.0,2.9590252]
[1773132391318,1.244,2064.0,2063.1,1.21176869]
[1773132391469,0.62481744,2064.0,2063.3,2.34722376]
[1773132391801,1.83606049,2064.0,2063.3,2.34722376]
[1773132392112,0.62481744,2064.0,2063.3,2.34722376]
[1773132392304,0.62481744,2063.6,2062.3,0.60661649]
[1773132393805,0.6744226,2063.4,2062.5,3.04140404]
[1773132393975,0.6744226,2063.4,2062.5,0.69418028]
[1773132394180,0.6744226,2063.4,2062.4,1.21217998]
[1773132395710,0.6744226,2063.4,2062.4,1.90636026]
[1773132395897,0.6744226,2063.2,2062.4,1.21217998]
[1773132396078,0.6744226,2063.2,2061.9,0.69418028]
[1773132396279,0.6744226,2063.2,2062.0,1.90659541]
[1773132396514,0.6744226,2063.2,2062.1,0.69418028]
[1773132396705,0.6744226,2063.2,2062.2,3.04140404]
[1773132397093,0.6744226,2063.2,2062.2,0.69418028]
[1773132398180,0.6744226,2063.0,2062.0,1.21241273]
[1773132398416,0.6744226,2063.0,2062.1,0.69418028]
[1773132399194,0.6744226,2063.0,2062.4,0.0011]
[1773132400304,1.21188617,2062.9,2062.4,0.0011]
[1773132400819,0.6744226,2062.9,2062.4,0.0011]
[1773132401028,0.6744226,2063.3,2062.6,3.04140404]
[1773132401937,0.6744226,2063.3,2062.6,0.69418028]
[1773132402299,1.88611104,2063.3,2062.6,1.90621277]
[1773132402500,0.6744226,2063.2,2062.6,1.21203249]
[1773132403013,0.6744226,2063.2,2062.5,1.21207661]
[1773132403208,0.6744226,2063.2,2062.4,1.21323404]
[1773132403805,0.6744226,2063.2,2062.5,0.68890576]
[1773132404211,0.6744226,2063.2,2062.4,1.90021575]
[1773132404612,1.88615572,2063.2,2062.4,1.90021575]
[1773132405039,1.88615572,2063.2,2062.5,0.68698171]
[1773132405252,0.001,2063.4,2062.7,0.68506102]
[1773132405537,1.21261603,2063.4,2062.7,0.68506102]
[1773132405742,0.6744226,2063.3,2062.4,1.21323404]
[1773132405946,0.6744226,2063.3,2062.4,1.89829506]
[1773132406108,0.6744226,2063.3,2062.5,3.03228478]
[1773132406736,0.6744226,2063.2,2062.6,1.21206244]
[1773132407612,0.6744226,2063.2,2062.4,0.0011]
[1773132407943,0.6744226,2063.2,2062.4,1.89447338]
[1773132408313,0.6744226,2063.2,2062.5,0.67932884]
[1773132408714,0.6744226,2063.2,2062.6,1.21206244]
[1773132408925,1.88613763,2063.2,2062.6,1.21206244]
[1773132411214,0.6744226,2063.1,2062.6,1.21206244]
[1773132412657,4.84748617,2063.4,2062.8,0.6635997]
[1773132412658,0.62914082,2063.4,2062.8,0.6635997]
[1773132412842,1.21259877,2063.4,2062.8,0.6635997]
[1773132413037,0.62814082,2063.3,2062.7,2.34722376]
[1773132413757,1.83982425,2063.3,2062.7,1.21308328]
[1773132413963,0.001,2063.1,2062.7,1.21308328]
[1773132414372,0.63135306,2063.1,2062.7,0.0011]
[1773132415873,0.001,2063.1,2062.7,0.0011]
[1773132417074,0.001,2063.1,2062.7,0.6537638]
[1773132417577,1.84314991,2063.1,2062.7,0.0011]
[1773132417976,0.63135306,2063.1,2062.7,0.0011]
[1773132418458,0.001,2063.1,2062.7,0.0011]
[1773132420059,0.001,2063.1,2062.7,1.82233131]
[1773132420798,0.001,2063.4,2062.8,2.96058077]
[1773132420995,0.001,2063.4,2062.9,0.60922763]
[1773132422168,0.001,2063.4,2062.9,1.82105591]
[1773132423687,1.82400419,2063.8,2063.0,0.64110586]
[1773132424090,1.82400419,2063.8,2063.1,1.21176869]
[1773132424757,0.61261211,2063.7,2063.1,1.21176869]
[1773132425999,0.64277772,2064.0,2063.2,0.60862091]
[1773132426283,1.85407497,2064.0,2063.3,3.56300437]
[1773132426714,0.64277772,2064.0,2063.4,0.6219433]
[1773132426852,0.66360364,2064.2,2063.6,2.35135314]
[1773132427057,0.66160364,2064.1,2063.3,1.21165123]
[1773132428301,0.002,2063.4,2063.2,4.84660495]
[1773132428507,0.66160364,2063.9,2063.2,4.84660495]
[1773132428937,0.002,2063.7,2063.2,4.84660495]
[1773132429449,0.66360364,2063.7,2063.1,0.001]
[1773132430219,0.66360364,2063.7,2063.1,1.21276043]
[1773132430538,1.21147509,2063.6,2063.1,0.001]
[1773132430719,1.87307873,2063.6,2063.1,0.001]
[1773132431852,0.66160364,2063.5,2063.1,0.001]
[1773132433060,1.87319081,2063.5,2063.1,0.001]
[1773132435266,0.66160364,2063.4,2063.1,0.001]
[1773132435765,0.66160364,2063.4,2062.9,0.001]
[1773132437135,1.21165123,2063.3,2062.9,0.001]
[1773132437334,0.66160364,2063.2,2062.9,0.001]
[1773132439341,0.66160364,2063.2,2062.7,0.0011]
[1773132439342,0.66160364,2063.0,2062.7,0.0011]
[1773132440580,1.21176869,2063.1,2062.7,0.0011]
[1773132440745,1.87323828,2063.4,2062.7,0.62287996]
[1773132440945,0.66160364,2063.3,2062.7,0.62287996]
[1773132441277,0.66160364,2063.1,2062.7,0.0011]
[1773132442304,0.002,2063.0,2062.7,0.0011]
[1773132442676,0.002,2063.0,2062.9,0.001]
[1773132445450,0.002,2063.2,2062.9,0.001]
[1773132447464,0.66360364,2063.5,2062.9,0.61058129]
[1773132447693,1.87514209,2063.5,2062.9,0.61058129]
[1773132448193,1.87514209,2063.5,2063.0,0.60958129]
[1773132448194,0.002,2063.5,2063.0,0.60958129]
[1773132449399,0.002,2063.5,2063.1,1.21176869]
[1773132452604,0.002,2063.5,2063.1,1.812762]
[1773132453900,0.59516114,2063.5,2062.9,0.60027386]
[1773132454102,0.59516114,2063.5,2062.9,0.001]
[1773132454473,0.59316114,2063.3,2062.9,0.001]
[1773132455984,0.59316114,2063.3,2063.1,0.001]
[1773132456184,0.59516114,2063.3,2063.1,0.001]
[1773132456705,1.80684314,2063.3,2063.1,0.001]
[1773132457204,0.59516114,2063.3,2063.1,0.001]
[1773132458296,1.80681261,2063.3,2063.1,0.001]
[1773132458470,0.59516114,2063.3,2063.1,0.001]
[1773132459206,0.002,2063.3,2063.1,0.001]
[1773132459504,0.002,2063.5,2063.1,0.001]
[1773132460784,0.59316114,2063.4,2062.7,1.21307956]
[1773132461122,0.59316114,2063.4,2062.8,0.58844542]
[1773132461280,1.80475845,2063.4,2062.9,1.21188617]
[1773132461914,0.59316114,2063.4,2062.9,1.21188617]
[1773132462079,1.21356505,2063.5,2062.9,1.79870444]
[1773132462080,0.002,2063.5,2062.9,1.79870444]
[1773132462282,0.002,2063.5,2063.0,0.58513897]
[1773132462592,1.21353449,2063.5,2063.0,0.58513897]
[1773132463095,0.59516114,2063.5,2063.0,0.58513897]
[1773132463298,1.80670379,2063.5,2063.0,1.79692022]
[1773132463809,0.59516114,2063.5,2063.0,1.79692022]
[1773132463979,0.002,2063.5,2063.0,1.79692022]
[1773132464979,1.21354405,2063.5,2063.0,1.79692022]
[1773132466103,0.002,2063.5,2063.0,1.79692022]
[1773132468515,0.59516114,2063.5,2063.0,0.58513897]
[1773132468701,0.59516114,2063.5,2062.9,1.21187821]
[1773132469619,1.80475365,2063.4,2062.8,0.57349838]
[1773132469789,1.80475365,2063.4,2062.8,1.78539484]
[1773132470296,1.80475365,2063.4,2063.1,0.001]
[1773132470687,0.002,2063.3,2063.1,0.001]
[1773132471312,0.59516114,2063.3,2063.1,0.001]
[1773132471815,0.59316114,2063.2,2063.1,0.001]
[1773132474426,0.002,2063.3,2063.1,0.001]
[1773132476293,0.5874049,2063.3,2063.1,0.001]
[1773132477223,1.79906574,2063.3,2063.1,0.001]
[1773132477525,0.5874049,2063.3,2063.1,0.001]
[1773132478192,0.002,2063.3,2063.1,0.001]
[1773132479841,0.002,2063.5,2063.2,0.55720202]
[1773132480394,1.21353877,2063.5,2063.1,0.001]
[1773132480627,0.002,2063.5,2063.1,0.55665933]
[1773132481008,0.002,2063.5,2063.1,1.76837919]
[1773132481506,0.002,2063.5,2063.1,2.70847129]
[1773132483229,0.5874049,2063.7,2063.2,0.60503373]
[1773132483533,0.60121554,2064.3,2063.7,0.59147235]
[1773132483738,0.60121554,2064.3,2063.2,2.4230921]
[1773132483739,0.001,2063.3,2063.2,2.4230921]
[1773132484033,0.60121554,2063.6,2063.1,1.80419221]
[1773132484645,0.60121554,2063.6,2063.1,2.74428431]
[1773132485841,1.81269324,2063.6,2063.1,2.74428431]
[1773132486042,0.60121554,2063.5,2063.1,0.9410921]
[1773132486236,0.60121554,2063.5,2063.1,0.001]
[1773132487438,0.60121554,2063.4,2063.1,0.001]
[1773132491965,1.81269346,2063.6,2063.1,1.80419181]
[1773132493569,0.60121554,2063.5,2062.9,0.001]
[1773132493961,0.60121554,2063.3,2062.9,1.21288418]
[1773132494132,0.60121554,2063.3,2062.9,1.80435653]
[1773132496772,0.60121554,2063.3,2063.1,0.001]
[1773132498037,0.60121554,2063.6,2063.1,0.59247235]
[1773132498264,0.60121554,2063.6,2063.1,1.80419725]
[1773132498440,0.60121554,2063.6,2063.2,0.59147235]
[1773132498841,1.81269877,2063.6,2063.2,0.59147235]
[1773132499781,1.21138312,2063.8,2063.2,0.59147235]
[1773132499944,1.81259866,2063.8,2063.2,0.59147235]
[1773132500145,1.81259866,2063.8,2063.2,1.80312744]
[1773132500459,0.60121554,2063.7,2063.2,1.21165509]
[1773132500679,0.60121554,2063.8,2063.3,0.59147235]
[1773132501177,0.002,2064.0,2063.6,1.53156445]
[1773132501339,0.60321554,2064.0,2063.6,0.59147235]
[1773132501694,0.60321554,2064.0,2063.4,1.53156445]
[1773132501983,0.60321554,2064.0,2063.5,0.59147235]
[1773132502137,0.002,2064.0,2063.7,1.80284144]
[1773132503607,0.002,2064.2,2063.8,1.53156445]
[1773132504311,0.002,2064.2,2063.8,1.80282275]
[1773132504907,1.21304539,2064.4,2063.8,1.80282275]
[1773132504908,0.002,2064.4,2064.0,1.53156445]
[1773132505974,0.002,2064.4,2064.0,0.9400921]
[1773132506193,0.002,2064.4,2064.1,1.80262268]
[1773132506681,0.002,2064.7,2064.4,1.53156445]
[1773132507480,0.60121554,2064.9,2064.6,0.9400921]
[1773132507681,0.60121554,2065.1,2064.6,0.9400921]
[1773132507882,0.60121554,2065.1,2064.6,1.53156445]
[1773132508103,0.60121554,2065.0,2064.2,0.59147235]
[1773132508304,0.60121554,2065.0,2064.3,1.21106428]
[1773132508305,0.60121554,2064.8,2064.3,1.21106428]
[1773132508610,0.60121554,2064.8,2064.3,1.80253663]
[1773132508785,0.60121554,2065.0,2064.4,1.53156445]
[1773132510088,0.60121554,2065.0,2064.3,1.21106428]
[1773132510293,0.60121554,2065.0,2064.3,2.69706428]
[1773132510508,0.60121554,2064.8,2064.3,2.69706428]
[1773132511718,0.60121554,2064.8,2063.4,13.30675788]
[1773132511883,1.21071238,2064.9,2063.7,0.59147235]
[1773132511884,0.60121554,2064.6,2063.7,0.59147235]
[1773132512589,0.60121554,2064.4,2063.6,1.21144633]
[1773132512780,0.60121554,2064.4,2063.6,1.80291868]
[1773132514294,0.60121554,2064.4,2063.6,2.74301078]
[1773132514589,0.53193716,2064.2,2063.4,1.79117715]
[1773132514984,0.53193716,2064.2,2063.8,0.9400921]
[1773132515391,0.53193716,2064.2,2063.7,0.57962557]
[1773132516813,1.74309606,2064.2,2063.7,0.57962557]
[1773132516990,1.74309606,2064.2,2063.7,1.79103211]
[1773132517197,0.53193716,2064.2,2063.7,1.79103211]
[1773132517604,1.74304484,2064.3,2063.7,1.51971767]
[1773132519004,0.53193716,2064.2,2063.8,1.21135768]
[1773132520908,0.53193716,2064.5,2063.9,1.51971767]
[1773132521104,0.53393716,2064.5,2064.0,1.79086588]